bitfinex/quotes_BTCUSD_20250423
["timestamp","ask_amount","ask_price","bid_price","bid_amount"]
[1745416941372,0.0491,93126.0,93105.0,0.10689014]
[1745416941609,0.0491,93126.0,93106.0,0.0007527]
[1745416941610,0.13124573,93125.0,93106.0,0.0007527]
[1745416941830,0.13124573,93125.0,93108.0,4e-05]
[1745416942043,0.13024573,93125.0,93108.0,0.10768315]
[1745416942709,0.0443,93125.0,93109.0,0.10689014]
[1745416942933,0.0443,93125.0,93110.0,0.3407525]
[1745416943150,0.0443,93125.0,93110.0,1.10734402]
[1745416943401,0.0443,93125.0,93112.0,0.34]
[1745416943602,0.0443,93125.0,93114.0,0.34]
[1745416943815,0.0473,93125.0,93116.0,0.34]
[1745416944053,0.0473,93125.0,93118.0,0.34]
[1745416944287,0.003,93125.0,93124.0,0.44689014]
[1745416945020,0.0008496,93127.0,93125.0,0.34]
[1745416945254,0.0008496,93127.0,93126.0,0.00075154]
[1745416945488,0.0008496,93127.0,93108.0,4e-05]
[1745416945489,0.0008496,93127.0,93108.0,0.00079252]
[1745416945743,0.0008496,93127.0,93109.0,0.10689014]
[1745416945979,0.0008496,93127.0,93110.0,0.0007521]
[1745416946202,0.0008496,93127.0,93111.0,0.10689014]
[1745416946430,0.0008496,93127.0,93125.0,0.001]
[1745416946667,0.0008496,93127.0,93126.0,0.4476423]
[1745416946878,0.0028496,93127.0,93126.0,0.44689014]
[1745416948700,0.0008496,93127.0,93126.0,0.44689014]
[1745416949168,0.0028496,93127.0,93126.0,0.46143099]
[1745416949616,0.0038496,93127.0,93126.0,0.46143099]
[1745416949867,0.0068496,93127.0,93126.0,0.65211099]
[1745416950312,0.0038496,93127.0,93126.0,0.65311099]
[1745416950539,0.0008496,93127.0,93126.0,0.65411099]
[1745416950754,0.0008496,93127.0,93126.0,0.64057014]
[1745416950962,0.0008496,93127.0,93126.0,0.63957014]
[1745416951193,0.0008496,93127.0,93126.0,0.65311099]
[1745416951434,0.0008496,93127.0,93126.0,0.63857014]
[1745416951654,0.0008496,93127.0,93126.0,0.65311099]
[1745416952099,0.0008496,93127.0,93126.0,0.63757014]
[1745416953006,0.0008496,93127.0,93126.0,0.65211099]
[1745416953223,0.00089636,93127.0,93126.0,0.65211099]
[1745416953459,0.00089636,93127.0,93126.0,0.86687378]
[1745416953695,0.00089636,93127.0,93126.0,1.02589399]
[1745416953905,0.00189636,93127.0,93126.0,1.02589399]
[1745416954215,0.0008504,93133.0,93126.0,1.22906595]
[1745416954422,0.0489,93153.0,93133.0,0.36527818]
[1745416954634,0.0489,93153.0,93140.0,0.35454085]
[1745416954856,0.0489,93153.0,93141.0,0.4476404]
[1745416955084,0.08594573,93152.0,93141.0,0.44689014]
[1745416955507,0.0489,93153.0,93141.0,0.44689014]
[1745416956154,0.0489,93153.0,93141.0,0.34]
[1745416956155,0.00728645,93142.0,93141.0,0.34]
[1745416956371,0.00928645,93142.0,93141.0,0.34]
[1745416956579,0.01128645,93142.0,93141.0,0.34]
[1745416958697,0.01128645,93142.0,93141.0,0.44689014]
[1745416959317,0.00128645,93142.0,93141.0,0.34]
[1745416960613,0.00128645,93142.0,93141.0,0.44689014]
[1745416961050,0.000849,93165.0,93145.0,0.35454085]
[1745416961272,0.000849,93165.0,93145.0,0.95496385]
[1745416961478,0.000849,93165.0,93145.0,0.46143099]
[1745416961950,0.000849,93165.0,93145.0,0.75206999]
[1745416962618,0.000849,93165.0,93145.0,0.75306999]
[1745416963048,0.000849,93165.0,93145.0,0.75506999]
[1745416964971,0.000849,93165.0,93145.0,0.58496999]
[1745416965178,0.000849,93165.0,93153.0,0.01073502]
[1745416965383,0.000849,93165.0,93158.0,0.46143099]
[1745416966019,0.000849,93165.0,93158.0,0.44689014]
[1745416966440,0.0018496,93159.0,93158.0,0.44689014]
[1745416967690,0.0008496,93159.0,93158.0,0.44689014]
[1745416968120,0.0028496,93159.0,93158.0,0.44689014]
[1745416968545,0.0028496,93159.0,93158.0,0.46143099]
[1745416968761,0.0028496,93159.0,93158.0,0.44689014]
[1745416968992,0.0028496,93159.0,93158.0,0.62725014]
[1745416969207,0.0028496,93159.0,93158.0,0.64179099]
[1745416971668,0.0028496,93159.0,93158.0,1.17688601]
[1745416972117,0.0028496,93159.0,93158.0,1.12057701]
[1745416972340,0.0028496,93159.0,93158.0,0.80898499]
[1745416972555,0.0028496,93159.0,93158.0,0.64179099]
[1745416972802,0.0008496,93159.0,93158.0,0.78969299]
[1745416973028,0.0008496,93159.0,93158.0,0.79369299]
[1745416973296,0.0008496,93159.0,93158.0,0.83246099]
[1745416973526,0.0008496,93159.0,93158.0,0.81126299]
[1745416973763,0.0008496,93159.0,93158.0,1.04067499]
[1745416973984,0.0008496,93159.0,93158.0,1.16824099]
[1745416974432,0.0008496,93159.0,93158.0,1.17124099]
[1745416974658,0.0008496,93159.0,93158.0,1.17424099]
[1745416975124,0.000849,93165.0,93164.0,0.56921604]
[1745416975389,0.000849,93165.0,93164.0,1.03803124]
[1745416975622,0.000849,93165.0,93164.0,0.77657305]
[1745416975839,0.000849,93165.0,93164.0,0.47212505]
[1745416976263,0.000849,93165.0,93164.0,1.02598005]
[1745416976465,0.000849,93165.0,93164.0,1.03867905]
[1745416976697,0.000849,93165.0,93164.0,0.62693505]
[1745416976906,0.000849,93165.0,93164.0,0.84161024]
[1745416977169,0.000849,93165.0,93164.0,0.62693505]
[1745416977370,0.08594573,93204.0,93201.0,0.05]
[1745416977779,0.08694573,93204.0,93201.0,0.05]
[1745416978011,0.001,93204.0,93201.0,0.05]
[1745416978214,0.001,93204.0,93202.0,0.00074619]
[1745416978632,0.002,93204.0,93202.0,0.00074619]
[1745416979041,0.001,93204.0,93202.0,0.00074619]
[1745416979453,0.002,93204.0,93202.0,0.00074619]
[1745416980116,0.002,93204.0,93196.0,0.05]
[1745416980337,0.098,93203.0,93191.0,0.002]
[1745416980575,0.0984243,93203.0,93180.0,0.71055251]
[1745416980784,0.0984243,93203.0,93181.0,0.34]
[1745416981033,0.0984243,93203.0,93183.0,0.34]
[1745416981248,0.0984243,93203.0,93191.0,0.34]
[1745416981462,0.0984243,93203.0,93193.0,0.34]
[1745416981677,0.0984243,93203.0,93195.0,0.34]
[1745416981954,0.0984243,93203.0,93197.0,0.34]
[1745416982177,0.1004243,93203.0,93197.0,0.34]
[1745416982873,0.0984243,93203.0,93197.0,0.34]
[1745416983572,0.0984243,93203.0,93181.0,0.34]
[1745416983796,0.0984243,93203.0,93183.0,0.34]
[1745416984028,0.0984243,93203.0,93185.0,0.34]
[1745416984276,0.11064531,93202.0,93155.0,0.17516]
[1745416984533,0.11064531,93202.0,93159.0,0.34]
[1745416984770,0.11064571,93201.0,93171.0,0.342]
[1745416985029,0.00375557,93201.0,93172.0,0.10689014]
[1745416985228,0.00375555,93202.0,93172.0,0.10689014]
[1745416985452,0.0984243,93203.0,93172.0,0.10689014]
[1745416985696,0.0984243,93203.0,93181.0,0.34]
[1745416985902,0.0984243,93203.0,93183.0,0.34]
[1745416986165,0.0984243,93203.0,93191.0,0.34]
[1745416986375,0.0984243,93203.0,93193.0,0.34]
[1745416986592,0.0984243,93203.0,93181.0,0.34]
[1745416986809,0.0984243,93203.0,93195.0,0.34]
[1745416987032,0.0984243,93203.0,93195.0,0.44689014]
[1745416987253,0.0994243,93203.0,93195.0,0.44689014]
[1745416987480,0.0994243,93203.0,93197.0,0.34]
[1745416987481,0.0984243,93203.0,93197.0,0.34]
[1745416987700,0.0004243,93203.0,93199.0,0.34]
[1745416987913,0.0004243,93203.0,93201.0,0.34]
[1745416988125,0.0004243,93203.0,93202.0,0.44689014]
[1745416988362,0.0034243,93203.0,93202.0,0.44689014]
[1745416988819,0.0004243,93203.0,93202.0,0.34]
[1745416989028,0.0024243,93203.0,93202.0,0.34]
[1745416989463,0.0064243,93203.0,93202.0,0.34]
[1745416989694,0.0024243,93203.0,93202.0,0.34]
[1745416989908,0.0054243,93203.0,93202.0,0.34]
[1745416990340,0.0004243,93203.0,93202.0,0.34]
[1745416990562,0.0044243,93203.0,93202.0,0.34]
[1745416991207,0.0034243,93203.0,93202.0,0.34]
[1745416991477,0.0074243,93203.0,93202.0,0.34]
[1745416992119,0.0034243,93203.0,93202.0,0.34]
[1745416992571,0.0004243,93203.0,93202.0,0.34]
[1745416992822,0.0034243,93203.0,93202.0,0.34]
[1745416993488,0.0044243,93203.0,93181.0,0.17516]
[1745416993736,0.0044243,93203.0,93190.0,0.46603496]
[1745416993950,0.0044243,93203.0,93190.0,0.10689014]
[1745416994168,0.0004243,93203.0,93190.0,0.10689014]
[1745416994387,0.0044243,93203.0,93190.0,0.10689014]
[1745416995241,0.0004243,93203.0,93190.0,0.10689014]
[1745416995460,0.0004243,93203.0,93182.0,0.34]
[1745416995715,0.0044243,93203.0,93182.0,0.34]
[1745416995920,0.0044243,93203.0,93184.0,0.34]
[1745416996139,0.0004243,93203.0,93191.0,0.34]
[1745416996352,0.0014243,93203.0,93193.0,0.34]
[1745416996597,0.0034243,93203.0,93196.0,0.01454085]
[1745416996811,0.0034243,93203.0,93202.0,0.46143099]
[1745416997026,0.0014243,93203.0,93202.0,0.44689014]
[1745416997233,0.0004243,93203.0,93202.0,0.46143099]
[1745416997469,0.0014243,93203.0,93202.0,0.46143099]
[1745416997682,0.0024243,93203.0,93202.0,0.46143099]
[1745416997901,0.0014243,93203.0,93202.0,0.46143099]
[1745416998335,0.0054243,93203.0,93202.0,0.46143099]
[1745416998784,0.0044243,93203.0,93202.0,0.46143099]
[1745416999487,0.0074243,93203.0,93202.0,0.46143099]
[1745416999703,0.0034243,93203.0,93202.0,0.46143099]
[1745416999915,0.0054243,93203.0,93202.0,0.46143099]
[1745417000137,0.0024243,93203.0,93202.0,0.46143099]
[1745417000358,0.0004243,93203.0,93202.0,0.46143099]
[1745417000808,0.0014243,93203.0,93202.0,0.46143099]
[1745417001231,0.0014243,93203.0,93202.0,0.10689014]
[1745417001448,0.0014243,93203.0,93202.0,0.12143099]
[1745417002180,0.0014243,93203.0,93202.0,0.33601865]
[1745417002414,0.0014243,93203.0,93202.0,0.46143099]
[1745417003616,0.0014243,93203.0,93202.0,0.67601865]
[1745417003847,0.0014243,93203.0,93202.0,0.92766365]
[1745417004076,0.0014243,93203.0,93202.0,0.92866365]
[1745417004327,0.0014243,93203.0,93202.0,0.95684856]
[1745417005756,0.0004243,93203.0,93202.0,0.95684856]
[1745417006199,0.0004243,93203.0,93202.0,1.13596856]
[1745417006666,0.0004243,93203.0,93202.0,1.08519565]
[1745417006959,0.0004243,93203.0,93202.0,1.08319565]
[1745417007191,0.0004243,93203.0,93202.0,1.08619565]
[1745417007420,0.0004243,93203.0,93202.0,1.09019565]
[1745417007865,0.0004243,93203.0,93202.0,0.87560799]
[1745417008074,0.0004243,93203.0,93202.0,0.28745014]
[1745417008496,0.0004243,93203.0,93202.0,0.47681199]
[1745417008701,0.0004243,93203.0,93202.0,0.62745014]
[1745417008907,0.0004243,93203.0,93202.0,0.84757814]
[1745417009133,0.0004243,93203.0,93202.0,0.62245014]
[1745417009338,0.0004243,93203.0,93202.0,0.62645014]
[1745417009542,0.0004243,93203.0,93202.0,0.76878099]
[1745417009755,0.0004243,93203.0,93202.0,0.76478099]
[1745417009960,0.0004243,93203.0,93202.0,0.76778099]
[1745417010168,0.0004243,93203.0,93202.0,0.59322099]
[1745417010372,0.0004243,93203.0,93202.0,0.76378099]
[1745417010576,0.0004243,93203.0,93202.0,0.76578099]
[1745417010989,0.0004243,93203.0,93202.0,0.63399099]
[1745417011854,0.0004243,93203.0,93202.0,0.63199099]
[1745417012038,0.0004243,93203.0,93202.0,0.74313699]
[1745417012300,0.0004243,93203.0,93202.0,0.74013699]
[1745417012516,0.0004243,93203.0,93202.0,0.74313699]
[1745417012747,0.0004243,93203.0,93202.0,0.74513699]
[1745417013189,0.0004243,93239.0,93233.0,0.01454085]
[1745417013415,0.0004243,93239.0,93235.0,0.35454085]
[1745417013637,0.0004243,93239.0,93238.0,0.46143099]
[1745417014997,0.0004243,93239.0,93238.0,2.29835599]
[1745417015213,0.0004243,93239.0,93238.0,2.02164599]
[1745417015672,0.0004243,93239.0,93238.0,2.0498309]
[1745417015912,0.002,93249.0,93239.0,0.56904336]
[1745417016143,0.002,93249.0,93240.0,0.46143099]
[1745417016371,0.002,93249.0,93240.0,0.8945119]
[1745417017082,0.002,93249.0,93240.0,0.92108027]
[1745417017525,0.002,93249.0,93240.0,0.8945119]
[1745417018225,0.002,93249.0,93248.0,0.56902266]
[1745417018458,0.002,93249.0,93248.0,3.14733398]
[1745417018698,0.002,93249.0,93248.0,1.39059617]
[1745417018918,0.002,93249.0,93248.0,0.61983305]
[1745417019380,0.002,93269.0,93248.0,0.61983305]
[1745417019381,0.002,93269.0,93258.0,0.61899966]
[1745417019611,0.002,93269.0,93258.0,3.28325671]
[1745417019612,1e-08,93259.0,93258.0,3.28325671]
[1745417019843,0.002,93289.0,93271.0,0.61896977]
[1745417020062,0.002,93289.0,93271.0,1.53087609]
[1745417020308,0.002,93289.0,93288.0,0.56893069]
[1745417020536,1e-08,93295.0,93294.0,0.5689169]
[1745417020764,1e-08,93295.0,93294.0,0.67580704]
[1745417021020,1e-08,93295.0,93294.0,0.88163862]
[1745417021235,1e-08,93295.0,93294.0,0.84632704]
[1745417021700,1e-08,93295.0,93294.0,0.88263862]
[1745417021935,0.0469,93340.0,93324.0,0.01454085]
[1745417022309,0.0452,93341.0,93324.0,0.01454085]
[1745417022310,0.0452,93341.0,93328.0,0.67572894]
[1745417022512,0.0452,93341.0,93328.0,1.07956394]
[1745417022951,0.0475,93352.0,93328.0,1.05199994]
[1745417023165,0.0475,93352.0,93328.0,1.08731152]
[1745417023382,0.0475,93352.0,93328.0,0.61737014]
[1745417023818,0.0487,93329.0,93319.0,0.46603496]
[1745417024038,0.0487,93329.0,93328.0,0.10689014]
[1745417024723,0.0487,93329.0,93325.0,0.34]
[1745417024931,0.0487,93329.0,93325.0,0.44689014]
[1745417025140,0.0487,93329.0,93325.0,0.34]
[1745417025351,0.0486,93328.0,93321.0,0.17044]
[1745417025570,0.0486,93328.0,93319.0,0.001]
[1745417025571,0.00375018,93327.0,93319.0,0.001]
[1745417025779,0.0486,93328.0,93309.0,0.17044]
[1745417026002,0.00375037,93327.0,93309.0,0.17044]
[1745417026221,0.0464,93325.0,93283.0,0.17044]
[1745417026459,0.0464,93325.0,93273.0,0.17044]
[1745417026460,0.12518223,93324.0,93273.0,0.17044]
[1745417026691,0.01454085,93323.0,93274.0,0.10689014]
[1745417026902,0.0955,93312.0,93274.0,0.10689014]
[1745417027112,0.095,93309.0,93282.0,0.08594573]
[1745417027351,0.0037512,93308.0,93284.0,0.34]
[1745417027553,0.095,93309.0,93285.0,0.10689014]
[1745417027758,0.095,93309.0,93286.0,0.34]
[1745417027981,0.00375121,93308.0,93288.0,0.34]
[1745417028196,0.00375121,93308.0,93290.0,0.34]
[1745417029171,0.095,93309.0,93292.0,0.42594573]
[1745417029375,0.095,93309.0,93302.0,0.08594573]
[1745417029579,0.095,93309.0,93304.0,0.34]
[1745417029784,0.095,93309.0,93306.0,0.34]
[1745417030013,0.095,93309.0,93308.0,0.34]
[1745417030245,0.095,93309.0,93308.0,0.10689014]
[1745417030586,0.0494,93309.0,93308.0,0.10689014]
[1745417030803,0.0494,93309.0,93302.0,0.42594573]
[1745417031011,0.0494,93309.0,93302.0,0.53283587]
[1745417031273,0.0494,93309.0,93304.0,0.34]
[1745417031483,0.0462,93321.0,93318.0,0.01071604]
[1745417031687,0.0495,93328.0,93324.0,0.01071535]
[1745417031898,0.003,93329.0,93326.0,0.35071512]
[1745417032116,0.003,93329.0,93328.0,0.35454085]
[1745417032306,0.003,93329.0,93328.0,0.46143099]
[1745417033817,0.003,93329.0,93328.0,0.70413799]
[1745417034830,0.000425,93346.0,93345.0,0.55425893]
[1745417035042,0.000425,93346.0,93345.0,0.44689014]
[1745417035659,0.000425,93346.0,93345.0,0.46143099]
[1745417035910,0.000425,93346.0,93345.0,0.56020399]
[1745417036325,0.000425,93346.0,93345.0,0.12143099]
[1745417036775,0.000425,93346.0,93345.0,0.64590399]
[1745417036984,0.000425,93346.0,93345.0,0.68121557]
[1745417037215,0.000425,93346.0,93345.0,0.41958657]
[1745417037426,0.000425,93346.0,93345.0,0.12143099]
[1745417038297,0.000425,93346.0,93345.0,0.12343099]
[1745417038511,0.000425,93346.0,93345.0,0.12143099]
[1745417038735,0.000425,93346.0,93345.0,0.002]
[1745417038909,0.000425,93346.0,93345.0,0.342]
[1745417039361,0.047625,93346.0,93345.0,0.342]
[1745417039570,0.047625,93346.0,93345.0,0.34]
[1745417039784,0.047625,93346.0,93337.0,0.35069406]
[1745417039986,0.047625,93346.0,93344.0,0.34]
[1745417040197,0.047625,93346.0,93344.0,0.44689014]
[1745417040408,0.047625,93346.0,93343.0,0.1702]
[1745417040624,0.047625,93346.0,93332.0,0.1702]
[1745417040839,0.047625,93346.0,93333.0,0.34]
[1745417041053,0.047625,93346.0,93332.0,0.1702]
[1745417041054,0.05324959,93345.0,93332.0,0.1702]
[1745417041276,0.0495,93345.0,93332.0,0.1702]
[1745417041494,0.0495,93345.0,93333.0,0.34]
[1745417041711,0.0495,93345.0,93333.0,0.53283587]
[1745417041949,0.0495,93345.0,93343.0,0.08594573]
[1745417042167,0.0495,93345.0,93344.0,0.46143099]
[1745417042382,0.000425,93346.0,93345.0,0.34]
[1745417042616,0.000425,93346.0,93345.0,0.44689014]
[1745417043268,0.000425,93346.0,93345.0,0.67568992]
[1745417043996,0.000425,93346.0,93345.0,0.7120015]
[1745417044211,0.000425,93346.0,93345.0,2.5489265]
[1745417044418,0.002425,93346.0,93345.0,0.7120015]
[1745417044634,0.002425,93346.0,93345.0,2.5489265]
[1745417045275,1e-08,93349.0,93348.0,0.56879289]
[1745417045495,0.002,93389.0,93381.0,0.35070881]
[1745417045714,0.002,93389.0,93383.0,0.56871259]
[1745417045939,0.002,93389.0,93383.0,0.67560273]
[1745417046161,0.002,93389.0,93383.0,0.71091431]
[1745417046603,0.002,93389.0,93383.0,1.16229004]
[1745417046817,7e-05,93399.0,93396.0,0.35070709]
[1745417047045,7e-05,93399.0,93398.0,0.67556833]
[1745417047263,0.0466,93436.0,93408.0,0.56865527]
[1745417047473,0.0466,93436.0,93408.0,0.69773387]
[1745417047716,0.0466,93436.0,93409.0,0.002]
[1745417047914,0.0466,93436.0,93422.0,0.67551332]
[1745417048126,0.0466,93436.0,93422.0,0.68620738]
[1745417048335,0.002,93449.0,93422.0,0.68620738]
[1745417048336,0.002,93449.0,93422.0,1.09348038]
[1745417048539,0.002,93449.0,93422.0,0.72151896]
[1745417048751,0.002,93449.0,93428.0,0.56860943]
[1745417048973,0.002,93449.0,93428.0,0.71081115]
[1745417049190,0.002,93449.0,93428.0,0.74435702]
[1745417049401,0.002,93449.0,93428.0,0.71081115]
[1745417049626,0.002,93449.0,93428.0,0.44689014]
[1745417049840,0.00574569,93449.0,93428.0,0.34]
[1745417050052,0.0944,93429.0,93401.0,0.01070652]
[1745417050313,0.0944,93429.0,93410.0,0.76159683]
[1745417050521,0.0944,93429.0,93411.0,0.32099649]
[1745417050733,0.0944,93429.0,93413.0,0.01070514]
[1745417050955,0.0944,93429.0,93419.0,0.34]
[1745417051181,0.0944,93429.0,93421.0,0.34]
[1745417051377,0.0944,93429.0,93421.0,0.55408356]
[1745417051651,0.0944,93429.0,93423.0,0.34]
[1745417051865,0.0944,93429.0,93427.0,0.34]
[1745417052078,0.0944,93429.0,93427.0,0.66095999]
[1745417052303,0.003,93429.0,93428.0,0.44689014]
[1745417052514,0.003,93429.0,93428.0,0.54737672]
[1745417052729,0.004,93429.0,93428.0,0.54737672]
[1745417052978,0.004,93429.0,93428.0,0.95804972]
[1745417053185,0.003,93429.0,93428.0,0.54737672]
[1745417054283,0.003,93429.0,93428.0,0.55137672]
[1745417055194,0.003,93429.0,93428.0,0.45389014]
[1745417055408,0.003,93429.0,93428.0,0.44989014]
[1745417055615,0.003,93429.0,93428.0,0.45289014]
[1745417055827,0.003,93429.0,93428.0,0.45589014]
[1745417056009,0.003,93429.0,93428.0,0.47043099]
[1745417056259,0.003,93429.0,93428.0,0.46743099]
[1745417056480,0.003,93429.0,93428.0,0.54737672]
[1745417056701,0.003,93429.0,93428.0,0.76771672]
[1745417056913,0.003,93429.0,93428.0,0.55037672]
[1745417057138,0.0004249,93440.0,93439.0,0.55404338]
[1745417057357,0.0004249,93440.0,93439.0,0.68616843]
[1745417058012,0.0004249,93440.0,93439.0,0.66093352]
[1745417058898,0.0004249,93440.0,93439.0,0.66293352]
[1745417059380,0.0004249,93440.0,93439.0,0.44889014]
[1745417059600,0.0004249,93440.0,93439.0,0.343]
[1745417059824,0.0004249,93440.0,93439.0,0.342]
[1745417060046,0.0004249,93440.0,93439.0,0.343]
[1745417060265,0.0004249,93440.0,93439.0,0.342]
[1745417060944,0.0489249,93440.0,93439.0,0.342]
[1745417061165,0.0494,93439.0,93419.0,0.17]
[1745417061391,0.00374626,93438.0,93419.0,0.17]
[1745417061636,0.00274626,93438.0,93404.0,0.00098211]
[1745417061850,0.00274626,93438.0,93418.0,0.34]
[1745417062073,0.00274626,93438.0,93417.0,0.17]
[1745417062495,0.00274626,93438.0,93418.0,0.10787226]
[1745417062719,0.0494,93439.0,93421.0,0.34]
[1745417062935,0.0494,93439.0,93423.0,0.34]
[1745417063197,0.0494,93439.0,93425.0,0.34]
[1745417063402,0.0494,93439.0,93427.0,0.34]
[1745417063609,0.0494,93439.0,93429.0,0.34]
[1745417063827,0.0494,93439.0,93431.0,0.34]
[1745417064047,0.0494,93439.0,93433.0,0.34]
[1745417064900,0.0014249,93440.0,93435.0,0.34]
[1745417065134,0.0014249,93440.0,93437.0,0.34]
[1745417065364,0.0014249,93440.0,93439.0,0.34]
[1745417065569,0.0014249,93440.0,93439.0,0.44689014]
[1745417065792,0.0014249,93440.0,93439.0,0.46143099]
[1745417066578,0.002,93449.0,93448.0,0.56856362]
[1745417066782,0.002,93449.0,93448.0,0.76139949]
[1745417066991,0.0488,93473.0,93466.0,0.55398155]
[1745417067244,0.0488,93473.0,93466.0,0.83087169]
[1745417067600,0.0488,93473.0,93466.0,0.34]
[1745417070158,0.0465,93461.0,93453.0,0.34]
[1745417070391,0.002,93460.0,93459.0,0.34]
[1745417070579,0.002,93460.0,93459.0,0.46143099]
[1745417070821,0.002,93460.0,93459.0,0.44989014]
[1745417071774,0.0004243,93467.0,93460.0,0.34]
[1745417071994,0.0004243,93467.0,93459.0,0.003]
[1745417075088,0.0014243,93467.0,93459.0,0.003]
[1745417075315,0.0004243,93467.0,93459.0,0.003]
[1745417075733,0.0014243,93467.0,93459.0,0.003]
[1745417078484,0.0004243,93467.0,93459.0,0.003]
[1745417078689,0.0014243,93467.0,93459.0,0.003]
[1745417079968,0.0024243,93467.0,93459.0,0.003]
[1745417080197,0.0004243,93467.0,93460.0,0.10786893]
[1745417081477,0.0014243,93467.0,93460.0,0.10786893]
[1745417081696,0.0004243,93467.0,93460.0,0.10786893]
[1745417081923,0.0004243,93467.0,93463.0,0.46143099]
[1745417082154,0.0014243,93467.0,93465.0,0.01454085]
[1745417082434,0.0004243,93467.0,93466.0,0.46240819]
[1745417082664,0.0004243,93467.0,93466.0,0.46143099]
[1745417082895,0.0926,93500.0,93466.0,0.68693374]
[1745417083107,0.0926,93500.0,93475.0,0.76159683]
[1745417083332,0.0455,93500.0,93481.0,0.10689014]
[1745417083537,0.0455,93500.0,93476.0,0.17061602]
[1745417083538,0.0004238,93505.0,93483.0,0.10689014]
[1745417083753,0.0004238,93505.0,93484.0,0.00097498]
[1745417083964,0.0004238,93505.0,93485.0,0.10689014]
[1745417084181,0.0004238,93505.0,93486.0,0.00097498]
[1745417084404,0.0004238,93505.0,93487.0,0.10689014]
[1745417084618,0.0004238,93505.0,93488.0,0.00097491]
[1745417084833,0.0004238,93505.0,93488.0,0.4624059]
[1745417085055,0.0476,93516.0,93488.0,0.4624059]
[1745417085056,0.0476,93516.0,93490.0,0.01454085]
[1745417085266,0.0476,93516.0,93506.0,0.76159683]
[1745417085477,0.0476,93516.0,93507.0,0.27746457]
[1745417085713,7e-05,93525.0,93508.0,0.00097444]
[1745417085930,7e-05,93525.0,93509.0,0.10689014]
[1745417086140,7e-05,93525.0,93510.0,0.00097408]
[1745417086350,7e-05,93525.0,93511.0,0.10689014]
[1745417086573,7e-05,93525.0,93512.0,0.00097412]
[1745417086783,7e-05,93525.0,93513.0,0.10689014]
[1745417086983,7e-05,93525.0,93508.0,0.00097413]
[1745417087192,0.00381242,93525.0,93508.0,0.34]
[1745417087404,7e-05,93525.0,93508.0,0.34]
[1745417087873,0.00374259,93524.0,93508.0,0.34]
[1745417088038,7e-05,93525.0,93510.0,0.34]
[1745417088243,7e-05,93525.0,93512.0,0.34]
[1745417088444,7e-05,93525.0,93513.0,0.17057421]
[1745417088779,7e-05,93525.0,93514.0,0.44689014]
[1745417089172,7e-05,93525.0,93515.0,0.0009739]
[1745417089382,7e-05,93525.0,93516.0,0.34]
[1745417089563,7e-05,93525.0,93516.0,0.44689014]
[1745417090050,7e-05,93525.0,93516.0,0.46143099]
[1745417091770,7e-05,93525.0,93516.0,0.46443099]
[1745417091986,7e-05,93525.0,93516.0,0.44689014]
[1745417092442,7e-05,93525.0,93516.0,0.61945014]
[1745417093385,7e-05,93525.0,93516.0,0.63499099]
[1745417093807,7e-05,93525.0,93516.0,0.63099099]
[1745417094228,7e-05,93525.0,93516.0,0.63499099]
[1745417094441,7e-05,93525.0,93516.0,1.37265699]
[1745417094660,7e-05,93525.0,93516.0,2.47191599]
[1745417095274,7e-05,93525.0,93516.0,2.47491599]
[1745417095721,0.013521,93517.0,93516.0,2.41887699]
[1745417095922,0.013521,93517.0,93516.0,1.56979799]
[1745417096145,7e-05,93525.0,93516.0,1.56213199]
[1745417096357,0.002,93549.0,93525.0,0.35454085]
[1745417096578,0.05,93614.0,93563.0,0.001]
[1745417096786,0.10689014,93612.0,93565.0,0.34]
[1745417096994,0.00276983,93611.0,93565.0,0.34]
[1745417097224,0.10689014,93610.0,93566.0,0.00280031]
[1745417097437,0.10689014,93604.0,93565.0,0.34]
[1745417097624,0.01828141,93603.0,93565.0,0.34]
[1745417097857,0.01454085,93601.0,93565.0,0.34]
[1745417098032,0.01454085,93599.0,93565.0,0.34]
[1745417098276,0.01454085,93588.0,93560.0,0.34]
[1745417098482,0.12143099,93586.0,93559.0,0.16908]
[1745417098696,0.10689014,93574.0,93541.0,0.16908]
[1745417098916,0.01454085,93569.0,93541.0,0.16908]
[1745417099126,0.11063193,93568.0,93551.0,0.002]
[1745417099483,0.0939,93567.0,93551.0,0.002]
[1745417099738,0.11063192,93566.0,93551.0,0.002]
[1745417100354,0.11063192,93566.0,93538.0,0.16908]
[1745417100731,0.11063192,93566.0,93539.0,0.34]
[1745417100982,0.11163192,93566.0,93539.0,0.42594573]
[1745417101384,0.11063192,93566.0,93541.0,0.34]
[1745417103248,0.01454085,93565.0,93541.0,0.34]
[1745417103460,0.01454085,93559.0,93531.0,0.002]
[1745417103663,0.01454085,93557.0,93531.0,0.002]
[1745417103871,0.11063238,93556.0,93531.0,0.002]
[1745417104079,0.01454085,93549.0,93531.0,0.002]
[1745417104283,0.01454085,93547.0,93531.0,0.002]
[1745417104483,0.11063263,93546.0,93531.0,0.002]
[1745417105849,0.11263263,93546.0,93531.0,0.002]
[1745417106501,0.004,93546.0,93538.0,0.08594573]
[1745417106716,0.00374182,93551.0,93538.0,0.08594573]
[1745417106925,0.10689014,93550.0,93538.0,0.08594573]
[1745417107145,0.005,93546.0,93538.0,0.08594573]
[1745417107350,0.11063225,93545.0,93538.0,0.08594573]
[1745417107566,0.11063225,93545.0,93531.0,0.002]
[1745417108018,0.00374211,93545.0,93538.0,0.002]
[1745417108724,0.00374208,93544.0,93538.0,0.003]
[1745417108958,0.10689014,93543.0,93538.0,0.002]
[1745417109209,0.00374248,93542.0,93538.0,0.002]
[1745417109431,0.01454085,93538.0,93512.0,0.16908]
[1745417109648,0.01454085,93532.0,93512.0,0.16908]
[1745417109873,0.01454085,93524.0,93488.0,0.25502573]
[1745417110138,0.01454085,93520.0,93470.0,0.16908]
[1745417110377,0.11063356,93523.0,93470.0,0.63158793]
[1745417110378,0.01454085,93514.0,93470.0,0.63158793]
[1745417110618,0.0468,93515.0,93470.0,0.63158793]
[1745417110619,0.01354085,93512.0,93470.0,0.63158793]
[1745417110812,0.10689014,93510.0,93470.0,0.63158793]